Workbook

Sheet прилож. № 7
A1: Приложение № 2
A2: к решению Думы Ушаковского муниципального образования от 27.12.2018 г. №152 "О внесении изменений в решение Думы Ушаковского муниципального образования № 66 от 08.12.2017г. "Об утверждении бюджета на 2018 г. и на плановый период 2019-2020 годов"
A4: РАСПРЕДЕЛЕНИЕ БЮДЖЕТНЫХ АССИГНОВАНИЙ ПО РАЗДЕЛАМ, ПОДРАЗДЕЛАМ, ЦЕЛЕВЫМ СТАТЬЯМ (МУНИЦИПАЛЬНЫМ ПРОГРАММАМ И НЕПРОГРАММНЫМ НАПРАВЛЕНИЯМ ДЕЯТЕЛЬНОСТИ) И ВИДАМ РАСХОДОВ КЛАССИФИКАЦИИ РАСХОДОВ БЮДЖЕТОВ НА 2018 ГОД
A6: Наименование | B6: РЗ | C6: Пр | D6: КЦСР | E6: КВР | F6: Сумма (тыс. руб)
A7: В С Е Г О | F7: =F8+F83+F93+F102+F131+F171+F190+F207 -> 91957.3
A8: ОБЩЕГОСУДАРСТВЕННЫЕ ВОПРОСЫ | B8: 01 | C8: 00 | D8: 00.0.00.00000 | E8: 000 | F8: =F9+F30+F69+F19+F76 -> 29014.4
A9: Функционирование высшего должностного лица субъекта Российской Федерации и муниципального образования | B9: 01 | C9: 02 | D9: 00.0.00.00000 | E9: 000 | F9: =F10 -> 1770.8
A10: Непрограммные расходы органов местного самоуправления | B10: 01 | C10: 02 | D10: 91.0.00.00000 | E10: 000 | F10: =F11 -> 1770.8
A11: Непрограммные расходы органов местного самоуправления за счет средств местного бюджета | B11: 01 | C11: 02 | D11: 91.1.00.00000 | E11: 000 | F11: =F12 -> 1770.8
A12: Осуществление органами местного самоуправления полномочий местного значения поселения | B12: 01 | C12: 02 | D12: 91.1.00.60000 | E12: 000 | F12: =F13 -> 1770.8
A13: Обеспечение деятельности в сфере установленных функций | B13: 01 | C13: 02 | D13: 91.1.00.60001 | E13: 000 | F13: =F16+F17+F18 -> 1770.8
A14: Расходы на выплаты персоналу в целях обеспечения выполнения функций государственными (муниципальными) органами, казенными учреждениями, органами управления государственными внебюджетными фондами | B14: 01 | C14: 02 | D14: 91.1.00.60001 | E14: 100 | F14: =F15 -> 1770.8
A15: Расходы на выплаты персоналу государственных (муниципальных) органов | B15: 01 | C15: 02 | D15: 91.1.00.60001 | E15: 120 | F15: =F16+F17+F18 -> 1770.8
A16: Фонд оплаты труда государственных (муниципальных) органов | B16: 01 | C16: 02 | D16: 91.1.00.60001 | E16: 121 | F16: =1413.1 -> 1413.1
A17: Взносы по обязательному социальному страхованию на выплаты денежного содержания и иные выплаты работникам государственных (муниципальных) органов | B17: 01 | C17: 02 | D17: 91.1.00.60001 | E17: 129 | F17: =343.2+14.5 -> 357.7
A18: Иные выплаты персоналу государственных (муниципальных) органов, за исключением фонда оплаты труда | B18: 01 | C18: 02 | D18: 91.1.00.60001 | E18: 122 | F18: =100-30-70 -> 0
A19: Функционирование законодательных (представительных) органов государственной власти и представительных органов муниципальных образований | B19: 01 | C19: 03 | D19: 91.1.00.00000 | E19: 000 | F19: =F20 -> 919.9
A20: Непрограммные расходы органов местного самоуправления за счет средств местного бюджета | B20: 01 | C20: 03 | D20: 91.1.00.00000 | E20: 000 | F20: =F21 -> 919.9
A21: Осуществление органами местного самоуправления полномочий местного значения поселения | B21: 01 | C21: 03 | D21: 91.1.00.60000 | E21: 000 | F21: =F22 -> 919.9
A22: Обеспечение деятельности в сфере установленных функций | B22: 01 | C22: 03 | D22: 91.1.00.60001 | E22: 000 | F22: =F23+F27 -> 919.9
A23: Расходы на выплаты персоналу в целях обеспечения выполнения функций государственными (муниципальными) органами, казенными учреждениями, органами управления государственными внебюджетными фондами | B23: 01 | C23: 03 | D23: 91.1.00.60001 | E23: 100 | F23: =F24 -> 918.4
A24: Расходы на выплаты персоналу государственных (муниципальных) органов | B24: 01 | C24: 03 | D24: 91.1.00.60001 | E24: 120 | F24: =F25+F26 -> 918.4
A25: Фонд оплаты труда государственных (муниципальных) органов | B25: 01 | C25: 03 | D25: 91.1.00.60001 | E25: 121 | F25: =587.9+117 -> 704.9
A26: Взносы по обязательному социальному страхованию на выплаты денежного содержания и иные выплаты работникам государственных (муниципальных) органов | B26: 01 | C26: 03 | D26: 91.1.00.60001 | E26: 129 | F26: =177.5+36 -> 213.5
A27: Иные бюджетные ассигнования | B27: 01 | C27: 03 | D27: 91.1.00.60001 | E27: 800 | F27: =F29 -> 1.5
A28: Уплата налогов,сборов и иных платежей | B28: 01 | C28: 03 | D28: 91.1.00.60001 | E28: 850 | F28: =F29 -> 1.5
A29: Уплата иных платежей | B29: 01 | C29: 03 | D29: 91.1.00.60001 | E29: 853 | F29: =30-28.5 -> 1.5
A30: Непрограммные расходы органов местного самоуправления | B30: 01 | C30: 04 | D30: 91.0.00.00000 | E30: 000 | F30: =F31+F48 -> 22388.7
A31: Непрограммные расходы органов местного самоуправления за счет средств местного бюджета | B31: 01 | C31: 04 | D31: 91.1.00.00000 | E31: 000 | F31: =F32 -> 22388
A32: Осуществление органами местного самоуправления полномочий местного значения поселения | B32: 01 | C32: 04 | D32: 91.1.00.60000 | E32: 000 | F32: =F33 -> 22388
A33: Обеспечение деятельности в сфере установленных функций | B33: 01 | C33: 04 | D33: 91.1.00.60001 | E33: 000 | F33: =F34+F37+F39+F42 -> 22388
A34: Расходы на выплаты персоналу в целях обеспечения выполнения функций государственными (муниципальными) органами, казенными учреждениями, органами управления государственными внебюджетными фондами | B34: 01 | C34: 04 | D34: 91.1.00.60001 | E34: 100 | F34: =F35 -> 13909
A35: Расходы на выплаты персоналу государственных (муниципальных) органов | B35: 01 | C35: 04 | D35: 91.1.00.60001 | E35: 120 | F35: =F36+F38 -> 13909
A36: Фонд оплаты труда государственных (муниципальных) органов | B36: 01 | C36: 04 | D36: 91.1.00.60001 | E36: 121 | F36: =10034+197.6 -> 10231.6
A37: Иные выплаты персоналу государственных (муниципальных) органов, за исключением фонда оплаты труда | B37: 01 | C37: 04 | D37: 91.1.00.60002 | E37: 122 | F37: =60-26.8 -> 33.2
A38: Взносы по обязательному социальному страхованию на выплаты денежного содержания и иные выплаты работникам государственных (муниципальных) органов | B38: 01 | C38: 04 | D38: 91.1.00.60001 | E38: 129 | F38: =3030.2+26.8+580+40.4 -> 3677.4
A39: Закупка товаров, работ и услуг для обеспечения государственных (муниципальных) нужд | B39: 01 | C39: 04 | D39: 91.1.00.60001 | E39: 200 | F39: =F40 -> 8144.5
A40: Иные закупки товаров, работ и услуг для обеспечения государственных (муниципальных) нужд | B40: 01 | C40: 04 | D40: 91.1.00.60001 | E40: 240 | F40: =F41 -> 8144.5
A41: Прочая закупка товаров, работ и услуг для обеспечения государственных (муниципальных) нужд | B41: 01 | C41: 04 | D41: 91.1.00.60001 | E41: 244 | F41: =3716.7-105-100-60-20+1000+300+480.3+70+244.1+648.3-5.7-14.5+2199.8+28.4-237.9 -> 8144.5 | I41: -14.5 | J41: 2199.8 | K41: -237.9
A42: Иные бюджетные ассигнования | B42: 01 | C42: 04 | D42: 91.1.00.60001 | E42: 800 | F42: =F43+F46 -> 301.3
A43: Уплата налогов,сборов и иных платежей | B43: 01 | C43: 04 | D43: 91.1.00.60001 | E43: 850 | F43: =F44+F45 -> 71
A44: Уплата прочих налогов, сборов | B44: 01 | C44: 04 | D44: 91.1.00.60001 | E44: 852 | F44: 16
A45: Уплата иных платежей | B45: 01 | C45: 04 | D45: 91.1.00.60001 | E45: 853 | F45: =35+20 -> 55
A46: Исполнение судебных актов | B46: 01 | C46: 04 | D46: 91.1.00.60001 | E46: 830 | F46: =F47 -> 230.3
A47: Исполнение судебных актов Российской Федерации и мировых соглашений по возмещению вреда, причиненного в результате незаконных действий (бездействия) органов государственной власти (государственных органов), органов местного самоуправления либо должностных лиц этих органов, а также в результате деятельности казенных учреждений | B47: 01 | C47: 04 | D47: 91.1.00.60001 | E47: 831 | F47: =125.3+105 -> 230.3
A48: Непрограммные расходы органов местного самоуправления за счет средств областного бюджета | B48: 01 | C48: 04 | D48: 91.2.00.00000 | E48: 000 | F48: =F57+F49 -> 0.7
A49: Субсидии на выравнивание обеспеченности муниципальных образований Иркутской области по реализации ими их отдельных расходных обязательств | B49: 01 | C49: 04 | D49: 91.2.00.72600 | E49: 000 | F49: =F50+F54 -> 0
A50: Расходы на выплаты персоналу в целях обеспечения выполнения функций государственными (муниципальными) органами, казенными учреждениями, органами управления государственными внебюджетными фондами | B50: 01 | C50: 04 | D50: 91.2.00.72600 | E50: 100 | F50: =F51 -> 0
A51: Расходы на выплаты персоналу государственных (муниципальных) органов | B51: 01 | C51: 04 | D51: 91.2.00.72600 | E51: 120 | F51: =F52+F53 -> 0
A52: Фонд оплаты труда государственных (муниципальных) органов | B52: 01 | C52: 04 | D52: 91.2.00.72600 | E52: 121 | F52: 0
A53: Взносы по обязательному социальному страхованию на выплаты денежного содержания и иные выплаты работникам государственных (муниципальных) органов | B53: 01 | C53: 04 | D53: 91.2.00.72600 | E53: 129 | F53: 0
A54: Иные закупки товаров, работ и услуг для обеспечения государственных (муниципальных) нужд | B54: 01 | C54: 04 | D54: 91.2.00.72600 | E54: 200 | F54: =F55 -> 0
A55: Прочая закупка товаров, работ и услуг для обеспечения государственных (муниципальных) нужд | B55: 01 | C55: 04 | D55: 91.2.00.72600 | E55: 240 | F55: =F56 -> 0
A56: Прочая закупка товаров, работ и услуг для обеспечения государственных (муниципальных) нужд | B56: 01 | C56: 04 | D56: 91.2.00.72600 | E56: 244 | F56: 0
A57: Субвенции на осуществление областного государственного полномочия по определению перечня должностных лиц органов местного самоуправления, уполномоченных составлять протоколы об административных правонарушениях, предусмотренных отдельными законами Иркутской области об административной ответственности | B57: 01 | C57: 04 | D57: 91.2.00.73150 | E57: 000 | F57: =F60 -> 0.7
A58: Закупка товаров, работ и услуг для обеспечения государственных (муниципальных) нужд | B58: 01 | C58: 04 | D58: 91.2.00.73150 | E58: 200 | F58: =F59 -> 0.7
A59: Иные закупки товаров, работ и услуг для обеспечения государственных (муниципальных) нужд | B59: 01 | C59: 04 | D59: 91.2.00.73150 | E59: 240 | F59: =F60 -> 0.7
A60: Прочая закупка товаров, работ и услуг для обеспечения государственных (муниципальных) нужд | B60: 01 | C60: 04 | D60: 91.2.00.73150 | E60: 244 | F60: 0.7
A61: Обеспечение проведения выборов и референдумов | B61: 01 | C61: 07 | D61: 00.0.00.00000 | E61: 000 | F61: =F62 -> 0
A62: Непрограммные расходы органов местного самоуправления | B62: 01 | C62: 07 | D62: 91.0.00.00000 | E62: 000 | F62: 0
A63: Непрограммные расходы органов местного самоуправления за счет средств местного бюджета | B63: 01 | C63: 07 | D63: 91.1.00.00000 | E63: 000 | F63: 0
A64: Осуществление органами местного самоуправления полномочий местного значения поселения | B64: 01 | C64: 07 | D64: 91.1.00.60000 | E64: 000 | F64: 0
A65: Проведения выборов и референдумов | B65: 01 | C65: 07 | D65: 91.1.00.60003 | E65: 000 | F65: 0
A66: Закупка товаров, работ и услуг для обеспечения государственных (муниципальных) нужд | B66: 01 | C66: 07 | D66: 91.1.00.60003 | E66: 200 | F66: 0
A67: Иные закупки товаров, работ и услуг для обеспечения государственных (муниципальных) нужд | B67: 01 | C67: 07 | D67: 91.1.00.60003 | E67: 240 | F67: 0
A68: Прочая закупка товаров, работ и услуг для обеспечения государственных (муниципальных) нужд | B68: 01 | C68: 07 | D68: 91.1.00.60003 | E68: 244 | F68: 0
A69: Резервные фонды | B69: 01 | C69: 11 | D69: 00.0.00.00000 | E69: 000 | F69: =F70 -> 300
A70: Непрограммные расходы органов местного самоуправления | B70: 01 | C70: 11 | D70: 91.1.00.00000 | E70: 000 | F70: 300
A71: Непрограммные расходы органов местного самоуправления за счет средств местного бюджета | B71: 01 | C71: 11 | D71: 91.1.00.00000 | E71: 000 | F71: =F72 -> 300
A72: Осуществление органами местного самоуправления полномочий местного значения поселения | B72: 01 | C72: 11 | D72: 91.1.00.60000 | E72: 000 | F72: 300
A73: Резервный фонд администрации муниципального образования | B73: 01 | C73: 11 | D73: 91.1.00.60004 | E73: 000 | F73: 300
A74: Иные бюджетные ассигнования | B74: 01 | C74: 11 | D74: 91.1.00.60004 | E74: 800 | F74: 300
A75: Резервные средства | B75: 01 | C75: 11 | D75: 91.1.00.60004 | E75: 870 | F75: 300
A76: Другие общегосударственные вопросы | B76: 01 | C76: 13 | D76: 91.1.00.00000 | E76: 000 | F76: =F77 -> 3635
A77: Расходы на выплату персоналу в целях обеспечения выполнения функций государственными (муниципальными) органами, казенными учреждениями, органами управления государственными внебюджетными фондами | B77: 01 | C77: 13 | D77: 91.1.00.60002 | E77: 100 | F77: =F78+F79+F80 -> 3635
A78: Расходы на выплаты персоналу в целях обеспечения выполнения функций государственными (муниципальными) органами, казенными учреждениями, органами управления государственными внебюджетными фондами | B78: 01 | C78: 13 | D78: 91.1.00.60002 | E78: 111 | F78: =2088.1+700 -> 2788.1
A79: Взносы по обязательному социальному страхованию на выплаты по оплате труда работников и иные выплаты работникам учреждений | B79: 01 | C79: 13 | D79: 91.1.00.60002 | E79: 119 | F79: =565.9+280 -> 845.9
A80: Иные бюджетные ассигнования | B80: 01 | C80: 13 | D80: 91.1.00.60002 | E80: 800 | F80: =F81 -> 1
A81: Уплата налогов,сборов и иных платежей | B81: 01 | C81: 13 | D81: 91.1.00.60002 | E81: 850 | F81: =F82 -> 1
A82: Уплата иных платежей | B82: 01 | C82: 13 | D82: 91.1.00.60002 | E82: 853 | F82: 1
A83: НАЦИОНАЛЬНАЯ ОБОРОНА | B83: 02 | C83: 00 | D83: 00.0.00.00000 | E83: 000 | F83: =F84 -> 441.3
A84: Мобилизационная и вневойсковая подготовка | B84: 02 | C84: 03 | D84: 00.0.00.00000 | E84: 000 | F84: =F85 -> 441.3
A85: Непрограммные расходы органов местного самоуправления | B85: 02 | C85: 03 | D85: 91.0.00.00000 | E85: 000 | F85: =F86 -> 441.3
A86: Субвенции на осуществление первичного воинского учета на территориях, где отсутствуют военные комиссариаты | B86: 02 | C86: 03 | D86: 91.3.00.51180 | E86: 000 | F86: =F87 -> 441.3
A87: Расходы на выплаты персоналу государственных (муниципальных) органов | B87: 02 | C87: 03 | D87: 91.3.00.51181 | E87: 120 | F87: =F88+F89+F90 -> 441.3
A88: Фонд оплаты труда государственных (муниципальных) органов и взносы по обязательному социальному страхованию | B88: 02 | C88: 03 | D88: 91.3.00.51180 | E88: 121 | F88: =247.5+5.4+47.8 -> 300.7
A89: Взносы по обязательному социальному страхованию на выплаты денежного содержания и иные выплаты работникам государственных (муниципальных) органов | B89: 02 | C89: 03 | D89: 91.3.00.51180 | E89: 129 | F89: =74.7+16.5+16.8 -> 108
A90: Закупка товаров, работ и услуг для обеспечения государственных (муниципальных) нужд | B90: 02 | C90: 03 | D90: 91.3.00.51180 | E90: 200 | F90: =F91 -> 32.6
A91: Иные закупки товаров, работ и услуг для обеспечения государственных (муниципальных) нужд | B91: 02 | C91: 03 | D91: 91.3.00.51180 | E91: 240 | F91: =F92 -> 32.6
A92: Прочая закупка товаров, работ и услуг для обеспечения государственных (муниципальных) нужд | B92: 02 | C92: 03 | D92: 91.3.00.51180 | E92: 244 | F92: =5+92.2-64.6 -> 32.6
A93: НАЦИОНАЛЬНАЯ БЕЗОПАСНОСТЬ И ПРАВООХРАНИТЕЛЬНАЯ ДЕЯТЕЛЬНОСТЬ | B93: 03 | C93: 00 | D93: 00.0.00.00000 | E93: 000 | F93: =F94 -> 350
A94: Обеспечение пожарной безопасности | B94: 03 | C94: 10 | D94: 00.0.00.00000 | E94: 000 | F94: 350
A95: Непрограммные расходы органов местного самоуправления | B95: 03 | C95: 10 | D95: 91.0.00.00000 | E95: 000 | F95: 350
A96: Непрограммные расходы органов местного самоуправления за счет средств местного бюджета | B96: 03 | C96: 10 | D96: 91.1.00.00000 | E96: 000 | F96: 350
A97: Осуществление органами местного самоуправления полномочий местного значения поселения | B97: 03 | C97: 10 | D97: 91.1.00.60000 | E97: 000 | F97: 350
A98: Реализация других функций, связанных с обеспечением национальной безопасности и правоохранительной деятельности | B98: 03 | C98: 10 | D98: 91.1.00.60007 | E98: 000 | F98: 350
A99: Закупка товаров, работ и услуг для обеспечения государственных (муниципальных) нужд | B99: 03 | C99: 10 | D99: 91.1.00.60007 | E99: 200 | F99: 350
A100: Иные закупки товаров, работ и услуг для обеспечения государственных (муниципальных) нужд | B100: 03 | C100: 10 | D100: 91.1.00.60007 | E100: 240 | F100: =F101 -> 350
A101: Прочая закупка товаров, работ и услуг для обеспечения государственных (муниципальных) нужд | B101: 03 | C101: 10 | D101: 91.1.00.60007 | E101: 244 | F101: 350
A102: НАЦИОНАЛЬНАЯ ЭКОНОМИКА | B102: 04 | C102: 00 | D102: 00.0.00.00000 | E102: 000 | F102: =F103+F113 -> 12874
A103: Дорожное хозяйство (дорожные фонды) | B103: 04 | C103: 09 | D103: 00.0.00.00000 | E103: 000 | F103: =F104 -> 10361.6
A104: Непрограммные расходы органов местного самоуправления | B104: 04 | C104: 09 | D104: 91.0.00.00000 | E104: 000 | F104: 10361.6
A105: Непрограммные расходы органов местного самоуправления за счет средств местного бюджета | B105: 04 | C105: 09 | D105: 91.1.00.00000 | E105: 000 | F105: 10361.6
A106: Осуществление органами местного самоуправления полномочий местного значения поселения | B106: 04 | C106: 09 | D106: 91.1.00.60000 | E106: 000 | F106: =F108 -> 10361.6
A107: Приобретение материальных и нематериальных активов в сфере установленных функций | B107: 04 | C107: 09 | D107: 91.1.00.60010 | E107: 000 | F107: =F109 -> 10361.6
A108: Иные мероприятия и сфере установленных функций | B108: 04 | C108: 09 | D108: 91.1.00.60011 | E108: 000 | F108: 10361.6
A109: Закупка товаров, работ и услуг для обеспечения государственных (муниципальных) нужд | B109: 04 | C109: 09 | D109: 91.1.00.60011 | E109: 200 | F109: 10361.6
A110: Иные закупки товаров, работ и услуг для обеспечения государственных (муниципальных) нужд | B110: 04 | C110: 09 | D110: 91.1.00.60011 | E110: 240 | F110: =F112+F111 -> 10361.6
A111: Закупка товаров, работ, услуг в целях капитального ремонта государственного (муниципального) имущества | B111: 04 | C111: 09 | D111: 91.1.00.60011 | E111: 243 | F111: =1960+1013.7-198.2-28.2 -> 2747.3
A112: Прочая закупка товаров, работ и услуг для обеспечения государственных (муниципальных) нужд | B112: 04 | C112: 09 | D112: 91.1.00.60011 | E112: 244 | F112: =5633.8+2966-1013.7+28.2 -> 7614.3
A113: Другие вопросы в области национальной экономике | B113: 04 | C113: 12 | D113: 00.0.00.00000 | E113: 000 | F113: =F114 -> 2512.4
A114: Непрограммные расходы органов местного самоуправления | B114: 04 | C114: 12 | D114: 91.1.00.00000 | E114: 000 | F114: 2512.4
A115: Непрограммные расходы органов местного самоуправления за счет средств местного бюджета | B115: 04 | C115: 12 | D115: 91.1.00.00000 | E115: 000 | F115: =F116+F123+F127 -> 2512.4
A116: Осуществление органами местного самоуправления полномочий местного значения поселения | B116: 04 | C116: 12 | D116: 91.1.00.60000 | E116: 000 | F116: =F118 -> 1173.4
A117: Приобретение материальных и нематериальных активов в сфере установленных функций | B117: 04 | C117: 12 | D117: 91.1.00.60010 | E117: 000 | F117: =F118 -> 1173.4
A118: Иные мероприятия и сфере установленных функций | B118: 04 | C118: 12 | D118: 91.1.00.60011 | E118: 000 | F118: 1173.4
A119: Закупка товаров, работ и услуг для обеспечения государственных (муниципальных) нужд | B119: 04 | C119: 12 | D119: 91.1.00.60011 | E119: 200 | F119: 1173.4
A120: Иные закупки товаров, работ и услуг для обеспечения государственных (муниципальных) нужд | B120: 04 | C120: 12 | D120: 91.1.00.60011 | E120: 240 | F120: =F122 -> 1173.4
A121: Закупка товаров, работ, услуг в целях капитального ремонта государственного (муниципального) имущества | B121: 04 | C121: 12 | D121: 91.1.00.60011 | E121: 243 | F121: =873.7-873.7 -> 0
A122: Прочая закупка товаров, работ и услуг для обеспечения государственных (муниципальных) нужд | B122: 04 | C122: 12 | D122: 91.1.00.60011 | E122: 244 | F122: =8829.3-2966+999.5-4000-350.4-970-829.5+459.5+1 -> 1173.4
A123: Актуализация документов территориального планирования | B123: 04 | C123: 12 | D123: 91.4.00.S2970 | E123: 000 | F123: =F124 -> 969
A124: Закупка товаров, работ и услуг для обеспечения государственных (муниципальных) нужд | B124: 04 | C124: 12 | D124: 91.4.00.S2970 | E124: 200 | F124: =F125 -> 969
A125: Иные закупки товаров, работ и услуг для обеспечения государственных (муниципальных) нужд | B125: 04 | C125: 12 | D125: 91.4.00.S2970 | E125: 240 | F125: =F126 -> 969
A126: Прочая закупка товаров, работ и услуг для обеспечения государственных (муниципальных) нужд | B126: 04 | C126: 12 | D126: 91.4.00.S2970 | E126: 244 | F126: =970-1 -> 969
A127: Проведение работ в отношении постановки на кадастровый учет границ населенных пунктов | B127: 04 | C127: 12 | D127: 91.4.00.S2990 | E127: 000 | F127: =F128 -> 370
A128: Закупка товаров, работ и услуг для обеспечения государственных (муниципальных) нужд | B128: 04 | C128: 12 | D128: 91.4.00.S2990 | E128: 200 | F128: =F129 -> 370
A129: Иные закупки товаров, работ и услуг для обеспечения государственных (муниципальных) нужд | B129: 04 | C129: 12 | D129: 91.4.00.S2990 | E129: 240 | F129: =F130 -> 370
A130: Прочая закупка товаров, работ и услуг для обеспечения государственных (муниципальных) нужд | B130: 04 | C130: 12 | D130: 91.4.00.S2990 | E130: 244 | F130: =829.5-459.5 -> 370
A131: ЖИЛИЩНО-КОММУНАЛЬНОЕ ХОЗЯЙСТВО | B131: 05 | C131: 00 | D131: 00.0.00.00000 | E131: 000 | F131: =F132+F143+F151 -> 21222.6
A132: Жилищное хозяйство | B132: 05 | C132: 01 | D132: 00.0.00.00000 | E132: 000 | F132: =F133 -> 1940
A133: Непрограммные расходы органов местного самоуправления | B133: 05 | C133: 01 | D133: 91.0.00.00000 | E133: 000 | F133: =F134+F140 -> 1940
A134: Непрограммные расходы органов местного самоуправления за счет средств местного бюджета | B134: 05 | C134: 01 | D134: 91.1.00.00000 | E134: 000 | F134: 1928
A135: Осуществление органами местного самоуправления полномочий местного значения поселения | B135: 05 | C135: 01 | D135: 91.1.00.60000 | E135: 000 | F135: 1928
A136: Строительство, реконструкция, капитальный ремонт в сфере установленных функций | B136: 05 | C136: 01 | D136: 91.1.00.60008 | E136: 000 | F136: 1928
A137: Закупка товаров, работ и услуг для обеспечения государственных (муниципальных) нужд | B137: 05 | C137: 01 | D137: 91.1.00.60008 | E137: 200 | F137: 1928
A138: Иные закупки товаров, работ и услуг для обеспечения государственных (муниципальных) нужд | B138: 05 | C138: 01 | D138: 91.1.00.60008 | E138: 240 | F138: 1928
A139: Закупка товаров, работ, услуг в целях капитального ремонта государственного (муниципального) имущества | B139: 05 | C139: 01 | D139: 91.1.00.60008 | E139: 243 | F139: =40+6000-600-500-1500-1500-12 -> 1928 | J139: -12
A140: Текущий ремонт в сфере установленных функций | B140: 05 | C140: 01 | D140: 91.1.00.60009 | E140: 200 | F140: =F141 -> 12 | I140: 12
A141: Закупка товаров, работ и услуг для обеспечения государственных (муниципальных) нужд | B141: 05 | C141: 01 | D141: 91.1.00.60009 | E141: 240 | F141: =F142 -> 12
A142: Иные закупки товаров, работ и услуг для обеспечения государственных (муниципальных) нужд | B142: 05 | C142: 01 | D142: 91.1.00.60009 | E142: 244 | F142: 12
A143: Коммунальное хозяйство | B143: 05 | C143: 02 | D143: 00.0.00.00000 | E143: 000 | F143: =F144 -> 3197.6
A144: Непрограммные расходы органов местного самоуправления | B144: 05 | C144: 02 | D144: 91.0.00.00000 | E144: 000 | F144: =F146 -> 3197.6
A145: Непрограммные расходы органов местного самоуправления за счет средств местного бюджета | B145: 05 | C145: 02 | D145: 91.1.00.00000 | E145: 000 | F145: =F146 -> 3197.6
A146: Осуществление органами местного самоуправления полномочий местного значения поселения | B146: 05 | C146: 02 | D146: 91.1.00.60000 | E146: 000 | F146: =F147 -> 3197.6
A147: Иные мероприятия и сфере установленных функций | B147: 05 | C147: 02 | D147: 91.1.00.60011 | E147: 000 | F147: =F148 -> 3197.6
A148: Закупка товаров, работ и услуг для обеспечения государственных (муниципальных) нужд | B148: 05 | C148: 02 | D148: 91.1.00.60011 | E148: 200 | F148: =F149 -> 3197.6
A149: Иные закупки товаров, работ и услуг для обеспечения государственных (муниципальных) нужд | B149: 05 | C149: 02 | D149: 91.1.00.60011 | E149: 240 | F149: =F150 -> 3197.6
A150: Прочая закупка товаров, работ и услуг для обеспечения государственных (муниципальных) нужд | B150: 05 | C150: 02 | D150: 91.1.00.60011 | E150: 244 | F150: =7400+1000+0.3+0.4-6800+6800-4000-2500+4000+1097-3800.1 -> 3197.6 | I150: -3800
A151: Благоустройство | B151: 05 | C151: 03 | D151: 00.0.00.00000 | E151: 000 | F151: =F152 -> 16085 | J151: 14084645
A152: Непрограммные расходы органов местного самоуправления | B152: 05 | C152: 03 | D152: 91.0.00.00000 | E152: 000 | F152: =F153 -> 16085
A153: Непрограммные расходы органов местного самоуправления за счет средств местного бюджета | B153: 05 | C153: 03 | D153: 91.1.00.00000 | E153: 000 | F153: =F154 -> 16085
A154: Осуществление органами местного самоуправления полномочий местного значения поселения | B154: 05 | C154: 03 | D154: 91.1.00.60000 | E154: 000 | F154: =F155 -> 16085
A155: Мероприятия в области жилищно-коммунального хозяйства | B155: 05 | C155: 03 | D155: 91.1.00.60100 | E155: 000 | F155: =F156+F160 -> 16085
A156: Уличное освещение | B156: 05 | C156: 03 | D156: 91.1.00.60101 | E156: 000 | F156: =F157 -> 3862.6
A157: Закупка товаров, работ и услуг для обеспечения государственных (муниципальных) нужд | B157: 05 | C157: 03 | D157: 91.1.00.60101 | E157: 200 | F157: =F158 -> 3862.6
A158: Иные закупки товаров, работ и услуг для обеспечения государственных (муниципальных) нужд | B158: 05 | C158: 03 | D158: 91.1.00.60101 | E158: 240 | F158: =F159 -> 3862.6
A159: Прочая закупка товаров, работ и услуг для обеспечения государственных (муниципальных) нужд | B159: 05 | C159: 03 | D159: 91.1.00.60101 | E159: 244 | F159: =1362.3+600+400+1000+0.3+500 -> 3862.6
A160: Прочие мероприятия по благоустройству городских округов и поселений | B160: 05 | C160: 03 | D160: 91.1.00.60105 | E160: 000 | F160: =F161+F164 -> 12222.4
A161: Закупка товаров, работ и услуг для обеспечения государственных (муниципальных) нужд | B161: 05 | C161: 03 | D161: 91.1.00.60105 | E161: 200 | F161: =F162 -> 9722.4
A162: Иные закупки товаров, работ и услуг для обеспечения государственных (муниципальных) нужд | B162: 05 | C162: 03 | D162: 91.1.00.60105 | E162: 240 | F162: =F163 -> 9722.4
A163: Прочая закупка товаров, работ и услуг для обеспечения государственных (муниципальных) нужд | B163: 05 | C163: 03 | D163: 91.1.00.60105 | E163: 244 | F163: =7472.4-1000+4000-1000-153-1097+1500 -> 9722.4
A164: Непрограммные расходы органов местного самоуправления за счет средств областного бюджета | B164: 05 | C164: 03 | D164: 91.4.00.S2370 | E164: 000 | F164: =F165 -> 2500
A165: Субсидии на реализацию мероприятий перечня проектов народных инициатив за счет областного бюджета | B165: 05 | C165: 03 | D165: 91.4.00.S2370 | E165: 000 | F165: =F166 -> 2500
A166: Закупка товаров, работ и услуг для обеспечения государственных (муниципальных) нужд | B166: 05 | C166: 03 | D166: 91.4.00.S2370 | E166: 200 | F166: =F167 -> 2500
A167: Иные закупки товаров, работ и услуг для обеспечения государственных (муниципальных) нужд | B167: 05 | C167: 03 | D167: 91.4.00.S2370 | E167: 240 | F167: =F168 -> 2500
A168: Прочая закупка товаров, работ и услуг для обеспечения государственных (муниципальных) нужд | B168: 05 | C168: 03 | D168: 91.4.00.S2370 | E168: 244 | F168: =2250+250-250+250 -> 2500
A169: Субсидии юридическим лицам (кроме некоммерческих организаций), индивидуальным предпринимателям, физическим лицам – производителям товаров, работ, услуг | B169: 05 | C169: 03 | D169: 91.1.00.60100 | E169: 810 | F169: =F170 -> 0
A170: Субсидии на возмещение недополученных доходов и (или) возмещение фактически понесенных затрат в связи с производством (реализацией) товаров, выполнением работ, оказанием услуг | B170: 05 | C170: 03 | D170: 91.1.00.60105 | E170: 811 | F170: =3697.4-2917.1-300-480.3 -> 0
A171: КУЛЬТУРА, КИНЕМАТОГРАФИЯ | B171: 08 | C171: 00 | D171: 00.0.00.00000 | E171: 000 | F171: =F172 -> 27545.4
A172: КУЛЬТУРА | B172: 08 | C172: 01 | D172: 91.0.00.00000 | E172: 000 | F172: =F173+F179+F187 -> 27545.4
A173: Непрограммные расходы органов местного самоуправления | B173: 08 | C173: 01 | D173: 91.1.00.00000 | E173: 000 | F173: =F174 -> 13824
A174: Осуществление органами местного самоуправления полномочий местного значения поселения | B174: 08 | C174: 01 | D174: 91.1.00.60002 | E174: 000 | F174: =F175 -> 13824
A175: Расходы на выплату персоналу в целях обеспечения выполнения функций государственными (муниципальными) органами, казенными учреждениями, органами управления государственными внебюджетными фондами | B175: 08 | C175: 01 | D175: 91.1.00.60002 | E175: 100 | F175: =F176 -> 13824
A176: Расходы на выплату персоналу казенных учреждений | B176: 08 | C176: 01 | D176: 91.1.00.60002 | E176: 110 | F176: =F177+F178 -> 13824
A177: Фонд оплаты труда казенных учреждений и взносы по обязательному социальному страхованию | B177: 08 | C177: 01 | D177: 91.1.00.60002 | E177: 111 | F177: =10659-2088.1+1396+460.8 -> 10427.7
A178: Взносы по обязательному социальному страхованию на выплаты по оплате труда работников и иные выплаты работникам учреждений | B178: 08 | C178: 01 | D178: 91.1.00.60002 | E178: 119 | F178: =3219-565.9+604+139.2 -> 3396.3
A179: Непрограммные расходы органов местного самоуправления | B179: 08 | C179: 01 | D179: 91.0.00.00000 | E179: 000 | F179: =F180 -> 13588.4
A180: Непрограммные расходы органов местного самоуправления за счет средств местного бюджета | B180: 08 | C180: 01 | D180: 91.1.00.00000 | E180: 000 | F180: =F181 -> 13588.4
A181: Осуществление органами местного самоуправления полномочий местного значения поселения | B181: 08 | C181: 01 | D181: 91.1.00.60000 | E181: 000 | F181: 13588.4
A182: Обеспечение деятельности в сфере установленных функции бюджетных, автономных и казенных учреждений | B182: 08 | C182: 01 | D182: 91.1.00.60002 | E182: 000 | F182: 13588.4
A183: Закупка товаров, работ и услуг для обеспечения государственных (муниципальных) нужд | B183: 08 | C183: 01 | D183: 91.1.00.60002 | E183: 200 | F183: 13588.4
A184: Иные закупки товаров, работ и услуг для обеспечения государственных (муниципальных) нужд | B184: 08 | C184: 01 | D184: 91.1.00.60002 | E184: 240 | F184: =F185+F186 -> 13588.4
A185: Прочая закупка товаров, работ и услуг для обеспечения государственных (муниципальных) нужд | B185: 08 | C185: 01 | D185: 91.1.00.60002 | E185: 244 | F185: =3373.2+600-12+450+400-21+1000-100+800+2500+198.2-2650+700+2200+1500 -> 10938.4 | I185: 2200
A186: Закупка товаров, работ, услуг в целях капитального ремонта государственного (муниципального) имущества | B186: 08 | C186: 01 | D186: 91.1.00.60002 | E186: 243 | F186: 2650
A187: Иные бюджетные ассигнования | B187: 08 | C187: 01 | D187: 91.1.00.60002 | E187: 850 | F187: =F189+F188 -> 133
A188: Уплата прочих налогов, сборов | B188: 08 | C188: 01 | D188: 91.1.00.60002 | E188: 852 | F188: 8
A189: Уплата иных платежей | B189: 08 | C189: 01 | D189: 91.1.00.60002 | E189: 853 | F189: =25+100 -> 125
A190: СОЦИАЛЬНАЯ ПОЛИТИКА | B190: 10 | C190: 00 | D190: 00.0.00.00000 | E190: 000 | F190: =F191 -> 250.4
A191: Пенсионное обеспечение | B191: 10 | C191: 01 | D191: 00.0.00.00000 | E191: 000 | F191: 250.4
A192: Непрограммные расходы органов местного самоуправления | B192: 10 | C192: 01 | D192: 91.0.00.00000 | E192: 000 | F192: 250.4
A193: Непрограммные расходы органов местного самоуправления за счет средств местного бюджета | B193: 10 | C193: 01 | D193: 91.1.00.00000 | E193: 000 | F193: 250.4
A194: Осуществление органами местного самоуправления полномочий местного значения поселения | B194: 10 | C194: 01 | D194: 91.1.00.60000 | E194: 000 | F194: 250.4
A195: Доплаты к пенсиям муниципальных служащих | B195: 10 | C195: 01 | D195: 91.1.00.60018 | E195: 000 | F195: 250.4
A196: Социальное обеспечение и иные выплаты населению | B196: 10 | C196: 01 | D196: 91.1.00.60018 | E196: 300 | F196: 250.4
A197: Публичные нормативные социальные выплаты гражданам | B197: 10 | C197: 01 | D197: 91.1.00.60018 | E197: 310 | F197: 250.4
A198: Иные пенсии, социальные доплаты к пенсиям | B198: 10 | C198: 01 | D198: 91.1.00.60018 | E198: 312 | F198: =244.7+5.7 -> 250.4
A199: ФИЗИЧЕСКАЯ КУЛЬТУРА И СПОРТ | B199: 11 | C199: 00 | D199: 00.0.00.00000 | E199: 000 | F199: =F200 -> 
A200: Другие вопросы в области физической культуры и спорта | B200: 11 | C200: 05 | D200: 00.0.00.00000 | E200: 000
A201: Непрограммные расходы органов местного самоуправления | B201: 11 | C201: 05 | D201: 91.0.00.00000 | E201: 000
A202: Непрограммные расходы органов местного самоуправления за счет средств местного бюджета | B202: 11 | C202: 05 | D202: 91.1.00.00000 | E202: 000
... 19 more rows
